[Event "WSTCC-65 2020"]
[Site "Prague"]
[Date "2020.03.11"]
[Round "6.20"]
[White "Fencl, Vaclav"]
[Black "Heinsohn, Guenther"]
[Result "0-1"]
[ECO "E77"]
[WhiteElo "1857"]
[BlackElo "2157"]
[Annotator "ChessBase"]
[PlyCount "116"]
[EventDate "2020.03.06"]
[EventType "team-tourn"]
[EventCountry "CZE"]
[SourceTitle "playchess.com"]
[Source "ChessBase"]
[SourceQuality "1"]
[TimeControl "40/5400+30:1800+30"]

1. d4 {[%emt 0:00:00]} Nf6 {[%emt 0:00:00]} 2. c4 {[%emt 0:00:00]} g6 {[%emt 0:02:12]} 3. Nc3 {[%emt 0:00:03]} Bg7 {[%emt 0:00:11]} 4. e4 {[%emt 0:00:09]} d6 {[%emt 0:00:22]} 5. f4 {[%emt 0:00:14]} O-O {[%emt 0:01:07]} 6. Nf3 {[%emt 0:00:08]} c5 {[%emt 0:00:40]} 7. d5 {[%emt 0:00:18]} e6 {[%emt 0:01:31]} 8. Be2 {[%emt 0:00:08]} exd5 {[%emt 0:00:15]} 9. exd5 {[%emt 0:00:12]} Re8 {[%emt 0:12:58]} 10. O-O {[%emt 0:00:24]} Bf5 {[%emt 0:03:46]} 11. h3 {[%emt 0:13:43]} Ne4 {[%emt 0:03:10]} 12. Nxe4 {[%emt 0:01:00]} Bxe4 {[%emt 0:00:15]} 13. Ng5 {[%emt 0:00:33]} Nd7 {[%emt 0:17:22]} 14. Nxe4 {[%emt 0:15:35]} Rxe4 {[%emt 0:02:15]} 15. Bd3 {[%emt 0:00:24]} Re8 {[%emt 0:02:29]} 16. Qc2 {[%emt 0:01:14]} f5 {[%emt 0:02:53]} 17. Bd2 {[%emt 0:00:46]} Nf6 {[%emt 0:00:29]} 18. Rae1 {[%emt 0:00:26]} Qd7 {[%emt 0:00:48]} 19. Bc3 {[%emt 0:03:29]} Nh5 {[%emt 0:01:13]} 20. Bxg7 {[%emt 0:01:01]} Qxg7 {[%emt 0:00:25]} 21. Qf2 {[%emt 0:00:34]} Qf6 {[%emt 0:03:40]} 22. b3 {[%emt 0:07:03]} Qc3 {[%emt 0:06:03]} 23. Re3 {[%emt 0:03:31]} Rxe3 {[%emt 0:01:59]} 24. Qxe3 {[%emt 0:00:08]} Ng7 {[%emt 0:01:00]} 25. Rc1 {[%emt 0:01:17]} Qb2 {[%emt 0:03:05]} 26. Rc2 {[%emt 0:01:14]} Qa1+ {[%emt 0:01:34]} 27. Bf1 {[%emt 0:01:31]} Re8 {[%emt 0:01:38]} 28. Qf2 {[%emt 0:00:49]} Nh5 {[%emt 0:04:15]} 29. g4 {[%emt 0:05:31]} fxg4 {[%emt 0:00:30]} 30. hxg4 {[%emt 0:00:05]} Nf6 {[%emt 0:00:07]} 31. Re2 {[%emt 0:02:14]} Rxe2 {[%emt 0:01:28]} 32. Qxe2 {[%emt 0:00:04]} Qd4+ {[%emt 0:00:19]} 33. Qf2 {[%emt 0:01:28]} Qxf2+ {[%emt 0:01:08]} 34. Kxf2 {[%emt 0:00:04]} Nxg4+ {[%emt 0:00:10]} 35. Ke2 {[%emt 0:00:23]} Kg7 {[%emt 0:01:01]} 36. Bh3 {[%emt 0:01:00]} Nh6 {[%emt 0:00:12]} 37. Kf3 {[%emt 0:01:17]} Kf6 {[%emt 0:00:11]} 38. Ke4 {[%emt 0:00:38]} Nf7 {[%emt 0:03:13]} 39. Be6 {[%emt 0:04:03]} h6 {[%emt 0:00:46]} 40. Kf3 {[%emt 0:00:00]} Nd8 {[%emt 0:00:00]} 41. Bc8 {[%emt 0:01:22]} b6 {[%emt 0:01:45]} 42. Kg4 {[%emt 0:00:49]} a5 {[%emt 0:02:03]} 43. Bd7 {[%emt 0:00:20]} Nf7 {[%emt 0:03:27]} 44. Be6 {[%emt 0:00:38]} h5+ {[%emt 0:00:38]} 45. Kh4 {[%emt 0:01:04]} Nh6 {[%emt 0:01:36]} 46. Kg3 {[%emt 0:01:55]} Nf5+ {[%emt 0:00:29]} 47. Kf2 {[%emt 0:00:11]} g5 {[%emt 0:01:55]} 48. fxg5+ {[%emt 0:02:07]} Kxg5 {[%emt 0:00:11]} 49. Bf7 {[%emt 0:00:15]} Nd4 {[%emt 0:01:32]} 50. Bg8 {[%emt 0:00:46]} Kf4 {[%emt 0:02:52]} 51. Bh7 {[%emt 0:00:16]} b5 {[%emt 0:02:25]} 52. Bd3 {[%emt 0:03:40]} b4 {[%emt 0:04:02]} 53. Bg6 {[%emt 0:02:24]} h4 {[%emt 0:00:16]} 54. Bd3 {[%emt 0:00:31]} Nf3 {[%emt 0:01:45]} 55. Bg6 {[%emt 0:01:02]} Ne5 {[%emt 0:01:26]} 56. Bc2 {[%emt 0:01:41]} Ng4+ {[%emt 0:02:09]} 57. Kg1 {[%emt 0:00:08]} Kg3 {[%emt 0:00:59]} 58. Bf5 {[%emt 0:01:08]} Nf2 {[%emt 0:00:39]} 0-1

[Event "WSTCC-65 2020"]
[Site "Prague"]
[Date "2020.03.11"]
[Round "6.23"]
[White "Hammar, Bengt"]
[Black "Baumbach, Friedrich"]
[Result "1/2-1/2"]
[ECO "B37"]
[WhiteElo "2142"]
[BlackElo "2130"]
[Annotator "ChessBase"]
[PlyCount "58"]
[EventDate "2020.03.06"]
[EventType "team-tourn"]
[EventCountry "CZE"]
[SourceTitle "playchess.com"]
[Source "ChessBase"]
[SourceQuality "1"]
[TimeControl "40/5400+30:1800+30"]

1. e4 {[%emt 0:00:00]} c5 {[%emt 0:00:00]} 2. Nf3 {[%emt 0:00:24]} Nc6 {[%emt 0:00:17]} 3. d4 {[%emt 0:00:35]} cxd4 {[%emt 0:00:14]} 4. Nxd4 {[%emt 0:00:11]} g6 {[%emt 0:00:11]} 5. c4 {[%emt 0:01:07]} Bg7 {[%emt 0:00:35]} 6. Nc2 {[%emt 0:01:11]} Nf6 {[%emt 0:00:29]} 7. Nc3 {[%emt 0:00:19]} d6 {[%emt 0:01:37]} 8. Be2 {[%emt 0:02:36]} O-O {[%emt 0:00:12]} 9. Be3 {[%emt 0:02:20]} Be6 {[%emt 0:02:06]} 10. f3 {[%emt 0:04:35]} Rc8 {[%emt 0:03:58]} 11. Qd2 {[%emt 0:05:46]} Nd7 {[%emt 0:08:24]} 12. Rb1 {[%emt 0:03:44]} a6 {[%emt 0:06:13]} 13. Nd5 {[%emt 0:04:30]} Nce5 {[%emt 0:07:18]} 14. Na3 {[%emt 0:02:57]} f5 {[%emt 0:10:10]} 15. Nf4 {[%emt 0:03:17]} Bf7 {[%emt 0:02:07]} 16. exf5 {[%emt 0:00:14]} gxf5 {[%emt 0:00:02]} 17. O-O {[%emt 0:00:25]} Nf6 {[%emt 0:06:28]} 18. b3 {[%emt 0:03:54]} Qc7 {[%emt 0:04:08]} 19. Rbc1 {[%emt 0:04:27]} Rfd8 {[%emt 0:03:42]} 20. Nd5 {[%emt 0:09:19]} Bxd5 {[%emt 0:11:38]} 21. cxd5 {[%emt 0:00:33]} Qd7 {[%emt 0:00:59]} 22. Bb6 {[%emt 0:13:26]} Rxc1 {[%emt 0:01:41]} 23. Rxc1 {[%emt 0:00:10]} Rc8 {[%emt 0:00:16]} 24. Rxc8+ {[%emt 0:05:26]} Qxc8 {[%emt 0:00:03]} 25. Nc4 {[%emt 0:00:23]} Ned7 {[%emt 0:06:18]} 26. Bf2 {[%emt 0:02:11]} b5 {[%emt 0:02:43]} 27. Na5 {[%emt 0:04:50]} Qc7 {[%emt 0:02:36]} 28. a4 {[%emt 0:02:16]} bxa4 {[%emt 0:01:54]} 29. bxa4 {[%emt 0:00:07]} Nb6 {[%emt 0:02:02]} 1/2-1/2

[Event "WSTCC-65 2020"]
[Site "Prague"]
[Date "2020.03.11"]
[Round "6.24"]
[White "Walther, Hans-Wolfgang"]
[Black "Malmdin, Nils-Ake"]
[Result "0-1"]
[ECO "E29"]
[WhiteElo "2111"]
[BlackElo "2168"]
[Annotator "NA"]
[PlyCount "48"]
[EventDate "2020.03.06"]
[EventType "team-tourn"]
[EventCountry "CZE"]
[SourceTitle "playchess.com"]
[Source "ChessBase"]
[SourceQuality "1"]
[TimeControl "40/5400+30:1800+30"]

1. d4 {[%emt 0:00:00]} Nf6 {[%emt 0:00:06]} 2. c4 {[%emt 0:00:00]} e6 {[%emt 0:00:33]} 3. Nc3 {[%emt 0:00:05]} Bb4 {[%emt 0:00:18]} 4. e3 {[%emt 0:00:21]} O-O {[%emt 0:00:25]} 5. Bd3 {[%emt 0:00:26]} c5 {[%emt 0:02:23]} 6. a3 {[%emt 0:05:06]} Bxc3+ {[%emt 0:15:58]} 7. bxc3 {[%emt 0:00:05]} Nc6 {[%emt 0:00:44]} 8. Nf3 {[%emt 0:14:55]} d6 {[%emt 0:09:34]} 9. e4 {[%emt 0:08:04]} e5 {[%emt 0:00:56]} 10. d5 {[%emt 0:00:46]} Ne7 {[%emt 0:07:37]} 11. O-O {[%emt 0:11:22] E29: Nimzo-Indian: Sämisch: 5...0-0 6 e3 c5 7 Bd3 Nc6.} Ne8 {[%emt 0:06:37]} 12. Ne1 {[%emt 0:01:00] [#]} f5 $146 {[%emt 0:05:06]} ({Predecessor:} 12... Ng6 13. Qc2 Qf6 14. Be3 Nf4 15. f3 Nxd3 16. Nxd3 Qg6 17. Nf2 f5 18. f4 exf4 19. Bxf4 fxe4 20. Qxe4 Bf5 21. Qe7 Rc8 22. Qxb7 Rc7 23. Qb2 Rcf7 24. Qd2 {½-½ (24) Di Benedetto,E (2396)-David,A (2542) Padova 2019}) 13. exf5 {[%emt 0:06:31]} Bxf5 {[%emt 0:00:43]} 14. f4 {[%emt 0:13:38]} e4 {[%emt 0:17:37]} 15. Be2 {[%emt 0:02:06]} h6 {[%emt 0:00:32]} (15... Qa5 $14) 16. g4 {[%emt 0:01:23]} Bh7 {[%emt 0:00:25]} 17. Ng2 {[%emt 0:00:19]} Ng6 {[%emt 0:02:05]} 18. Qe1 {[%emt 0:00:27]} Nc7 {[%emt 0:01:11]} 19. a4 {[%emt 0:01:25]} a6 {[%emt 0:00:27]} 20. h4 {[%emt 0:04:55]} Re8 {[%emt 0:00:29]} 21. g5 {[%emt 0:03:01]} hxg5 {[%emt 0:00:46]} 22. hxg5 {[%emt 0:00:25]} Ne7 $18 {[%emt 0:00:36]} 23. Nh4 {[%emt 0:05:44]} Qd7 {[%emt 0:08:28]} 24. Kg2 {[%emt 0:10:40]} e3 {[%emt 0:02:06]} 0-1

[Event "WSTCC-65 2020"]
[Site "Prague"]
[Date "2020.03.11"]
[Round "6.34"]
[White "Goormachtigh, Johan"]
[Black "Heim, Sverre"]
[Result "1/2-1/2"]
[ECO "D07"]
[WhiteElo "2181"]
[BlackElo "2316"]
[Annotator "RC"]
[PlyCount "74"]
[EventDate "2020.03.06"]
[EventType "team-tourn"]
[EventCountry "CZE"]
[SourceTitle "playchess.com"]
[Source "ChessBase"]
[SourceQuality "1"]
[TimeControl "40/5400+30:1800+30"]

1. d4 {[%emt 0:00:00]} d5 {[%emt 0:00:00]} 2. c4 {[%emt 0:00:00]} Nc6 {[%emt 0:00:00]} 3. Nc3 {[%emt 0:00:13]} e5 {[%emt 0:00:04]} 4. cxd5 {[%emt 0:00:44]} Nxd4 {[%emt 0:00:08]} 5. e3 {[%emt 0:00:32]} Nf5 {[%emt 0:00:08]} 6. Nf3 {[%emt 0:13:48]} Bd6 {[%emt 0:00:16]} 7. Bb5+ {[%emt 0:01:32]} Bd7 {[%emt 0:00:14]} 8. Bxd7+ {[%emt 0:01:55]} Qxd7 {[%emt 0:00:12]} 9. O-O {[%emt 0:14:19]} h6 {[%emt 0:01:27]} 10. e4 {[%emt 0:03:23]} Nfe7 {[%emt 0:00:14]} 11. Nd2 {[%emt 0:00:43]} Nf6 {[%emt 0:01:15]} 12. Nc4 {[%emt 0:00:41]} O-O {[%emt 0:01:45]} 13. Qf3 {[%emt 0:10:02]} Kh7 {[%emt 0:04:53]} 14. a4 {[%emt 0:04:18]} Ng6 {[%emt 0:01:59]} 15. g3 {[%emt 0:04:07]} Ne8 {[%emt 0:18:56]} 16. Ne3 {[%emt 0:06:15]} Ne7 {[%emt 0:03:04]} 17. Bd2 {[%emt 0:09:15]} f5 {[%emt 0:03:57]} 18. exf5 {[%emt 0:00:41]} Nxf5 {[%emt 0:00:14]} 19. Qg4 {[%emt 0:09:20]} g6 {[%emt 0:14:22]} 20. Ne4 {[%emt 0:00:40]} Nf6 {[%emt 0:00:08]} 21. Nxf6+ {[%emt 0:01:58]} Rxf6 {[%emt 0:00:17]} 22. Qh3 {[%emt 0:01:29]} Qg7 {[%emt 0:03:52]} 23. Ng4 {[%emt 0:06:09]} Rf7 {[%emt 0:00:17]} 24. Bc3 {[%emt 0:00:18]} Nd4 {[%emt 0:03:41]} 25. Bxd4 {[%emt 0:01:12]} exd4 {[%emt 0:00:09]} 26. Rae1 {[%emt 0:00:25]} h5 {[%emt 0:00:53]} 27. f4 {[%emt 0:00:20]} Rf5 {[%emt 0:05:52]} 28. Ne5 {[%emt 0:06:32]} Bxe5 {[%emt 0:05:42]} 29. fxe5 {[%emt 0:00:02]} Rxe5 {[%emt 0:00:17]} 30. Rxe5 {[%emt 0:00:07]} Qxe5 {[%emt 0:00:13]} 31. Qd7+ {[%emt 0:00:06]} Kh6 {[%emt 0:04:15]} 32. Rf7 {[%emt 0:00:07]} Rh8 {[%emt 0:01:02]} 33. Re7 {[%emt 0:02:44]} Qd6 {[%emt 0:04:46]} 34. Qxc7 {[%emt 0:01:27]} Qxc7 {[%emt 0:01:49]} 35. Rxc7 {[%emt 0:00:02]} Rd8 {[%emt 0:01:22]} 36. Rxb7 {[%emt 0:01:00]} Rxd5 {[%emt 0:01:11]} 37. Kf1 {[%emt 0:00:40]} Kg5 {[%emt 0:03:43]} 1/2-1/2

[Event "WSTCC-65 2020"]
[Site "Prague"]
[Date "2020.03.11"]
[Round "6.36"]
[White "Aragones-Melhem, Georgy"]
[Black "Semakoff, Aleks"]
[Result "1-0"]
[ECO "B07"]
[WhiteElo "2106"]
[BlackElo "2012"]
[Annotator "ChessBase"]
[PlyCount "85"]
[EventDate "2020.03.06"]
[EventType "team-tourn"]
[EventCountry "CZE"]
[SourceTitle "playchess.com"]
[Source "ChessBase"]
[SourceQuality "1"]
[TimeControl "40/5400+30:1800+30"]

1. e4 {[%emt 0:00:00]} d6 {[%emt 0:00:00]} 2. d4 {[%emt 0:00:12]} Nf6 {[%emt 0:00:00]} 3. Nc3 {[%emt 0:00:47]} Nbd7 {[%emt 0:00:17]} 4. Nf3 {[%emt 0:01:07]} e5 {[%emt 0:00:28]} 5. Bc4 {[%emt 0:03:02]} Be7 {[%emt 0:01:12]} 6. Bxf7+ {[%emt 0:00:40]} Kxf7 {[%emt 0:00:25]} 7. Ng5+ {[%emt 0:00:07]} Kg8 {[%emt 0:01:32]} 8. Ne6 {[%emt 0:00:17]} Qe8 {[%emt 0:01:09]} 9. Nxc7 {[%emt 0:01:28]} Qg6 {[%emt 0:01:43]} 10. Nxa8 {[%emt 0:01:31]} Qxg2 {[%emt 0:07:44]} 11. Rf1 {[%emt 0:00:21]} Ng4 {[%emt 0:28:10]} 12. Qe2 {[%emt 0:01:27]} Nxh2 {[%emt 0:13:57]} 13. Qc4+ {[%emt 0:01:08]} d5 {[%emt 0:00:16]} 14. Nxd5 {[%emt 0:00:29]} Qxf1+ {[%emt 0:08:32]} 15. Qxf1 {[%emt 0:00:10]} Nxf1 {[%emt 0:00:05]} 16. Nxe7+ {[%emt 0:00:19]} Kf7 {[%emt 0:01:42]} 17. Nd5 {[%emt 0:05:47]} Nh2 {[%emt 0:02:41]} 18. Ke2 {[%emt 0:00:20]} Ng4 {[%emt 0:02:35]} 19. dxe5 {[%emt 0:00:42]} Ndxe5 {[%emt 0:01:27]} 20. f4 {[%emt 0:01:58]} Nc6 {[%emt 0:00:53]} 21. Nac7 {[%emt 0:01:50]} Nf6 {[%emt 0:05:52]} 22. Nxf6 {[%emt 0:01:44]} Kxf6 {[%emt 0:02:57]} 23. b3 {[%emt 0:00:12]} h5 {[%emt 0:02:30]} 24. Bb2+ {[%emt 0:00:24]} Kf7 {[%emt 0:00:20]} 25. f5 {[%emt 0:00:35]} Rh7 {[%emt 0:03:03]} 26. Nb5 {[%emt 0:00:18]} Ke7 {[%emt 0:03:19]} 27. Rd1 {[%emt 0:02:21]} h4 {[%emt 0:04:38]} 28. Kf3 {[%emt 0:02:11]} h3 {[%emt 0:01:03]} 29. Kg3 {[%emt 0:00:13]} Bd7 {[%emt 0:01:52]} 30. Kh2 {[%emt 0:01:28]} a6 {[%emt 0:01:38]} 31. Ba3+ {[%emt 0:00:29]} Kd8 {[%emt 0:00:56]} 32. Nd6 {[%emt 0:01:11]} Kc7 {[%emt 0:00:29]} 33. Bb2 {[%emt 0:02:12]} b5 {[%emt 0:00:51]} 34. e5 {[%emt 0:00:25]} Ne7 {[%emt 0:00:43]} 35. e6 {[%emt 0:00:27]} Bc6 {[%emt 0:00:01]} 36. Be5 {[%emt 0:00:33]} Kb6 {[%emt 0:00:34]} 37. c4 {[%emt 0:00:03]} Rh5 {[%emt 0:00:37]} 38. cxb5 {[%emt 0:01:48]} axb5 {[%emt 0:00:34]} 39. Rf1 {[%emt 0:00:42]} Rg5 {[%emt 0:02:07]} 40. Rf2 {[%emt 0:00:00]} Bg2 {[%emt 0:00:00]} 41. Bxg7 {[%emt 0:02:39]} Rxg7 {[%emt 0:01:10]} 42. f6 {[%emt 0:00:00]} Rh7 {[%emt 0:05:02]} 43. fxe7 {[%emt 0:02:39]} 1-0

[Event "WSTCC-65 2020"]
[Site "Prague"]
[Date "2020.03.11"]
[Round "6.41"]
[White "Babula, Milan"]
[Black "Holst, Per"]
[Result "1-0"]
[ECO "C17"]
[WhiteElo "2144"]
[BlackElo "2152"]
[Annotator "ChessBase"]
[PlyCount "101"]
[EventDate "2020.03.06"]
[EventType "team-tourn"]
[EventCountry "CZE"]
[SourceTitle "playchess.com"]
[Source "ChessBase"]
[SourceQuality "1"]
[TimeControl "40/5400+30:1800+30"]

1. e4 {[%emt 0:00:00]} e6 {[%emt 0:00:00]} 2. d4 {[%emt 0:00:00]} d5 {[%emt 0:00:00]} 3. Nc3 {[%emt 0:00:00]} Bb4 {[%emt 0:00:00]} 4. e5 {[%emt 0:00:00]} c5 {[%emt 0:00:20]} 5. Bd2 {[%emt 0:01:00]} Ne7 {[%emt 0:01:00]} 6. Nb5 {[%emt 0:04:23]} Bxd2+ {[%emt 0:00:11]} 7. Qxd2 {[%emt 0:00:01]} O-O {[%emt 0:00:33]} 8. dxc5 {[%emt 0:07:09]} Nd7 {[%emt 0:02:47]} 9. f4 {[%emt 0:08:36]} Nxc5 {[%emt 0:01:12]} 10. Bd3 {[%emt 0:02:01]} b6 {[%emt 0:00:55]} 11. Nf3 {[%emt 0:05:27]} Ba6 {[%emt 0:03:51]} 12. Nbd4 {[%emt 0:05:27]} Bxd3 {[%emt 0:01:00]} 13. cxd3 {[%emt 0:00:12]} Qd7 {[%emt 0:02:48]} 14. O-O {[%emt 0:02:36]} Nc6 {[%emt 0:03:37]} 15. b4 {[%emt 0:06:51]} Nxd4 {[%emt 0:06:32]} 16. Nxd4 {[%emt 0:00:03]} Nb7 {[%emt 0:00:13]} 17. f5 {[%emt 0:00:40]} exf5 {[%emt 0:00:10]} 18. Rxf5 {[%emt 0:05:23]} Nd8 {[%emt 0:02:06]} 19. Raf1 {[%emt 0:07:33]} Nc6 {[%emt 0:04:13]} 20. Qf4 {[%emt 0:03:56]} Nxd4 {[%emt 0:00:47]} 21. Qxd4 {[%emt 0:00:02]} Rae8 {[%emt 0:10:17]} 22. h4 {[%emt 0:03:48]} Qd8 {[%emt 0:04:36]} 23. h5 {[%emt 0:01:46]} Re6 {[%emt 0:00:19]} 24. R1f3 {[%emt 0:01:43]} f6 {[%emt 0:01:15]} 25. exf6 {[%emt 0:16:31]} Rfxf6 {[%emt 0:03:01]} 26. Rxd5 {[%emt 0:10:04]} Rd6 {[%emt 0:01:25]} 27. Rxd6 {[%emt 0:01:03]} Rxd6 {[%emt 0:01:26]} 28. Qc4+ {[%emt 0:01:23]} Kh8 {[%emt 0:00:13]} 29. Qf7 {[%emt 0:01:06]} Rf6 {[%emt 0:02:51]} 30. Rxf6 {[%emt 0:01:24]} gxf6 {[%emt 0:00:09]} 31. Kh2 {[%emt 0:01:24]} h6 {[%emt 0:02:31]} 32. Qg6 {[%emt 0:01:06]} Qd6+ {[%emt 0:06:13]} 33. g3 {[%emt 0:00:27]} Qe5 {[%emt 0:00:54]} 34. Qxh6+ {[%emt 0:00:33]} Kg8 {[%emt 0:00:09]} 35. Qg6+ {[%emt 0:00:06]} Kf8 {[%emt 0:00:37]} 36. Kh3 {[%emt 0:02:03]} Qe6+ {[%emt 0:01:23]} 37. Kh4 {[%emt 0:00:30]} Qe5 {[%emt 0:01:31]} 38. Qh6+ {[%emt 0:00:28]} Ke7 {[%emt 0:02:18]} 39. Qg7+ {[%emt 0:01:26]} Ke8 {[%emt 0:04:27]} 40. Qg6+ {[%emt 0:00:00]} Kf8 {[%emt 0:00:00]} 41. h6 {[%emt 0:07:25]} Qd4+ {[%emt 0:02:38]} 42. Qe4 {[%emt 0:00:51]} Qf2 {[%emt 0:00:53]} 43. Kg4 {[%emt 0:02:41]} Qh2 {[%emt 0:03:07]} 44. Qa8+ {[%emt 0:00:31]} Kf7 {[%emt 0:00:22]} 45. Qxa7+ {[%emt 0:00:04]} Ke8 {[%emt 0:00:41]} 46. Qb8+ {[%emt 0:01:28]} Kf7 {[%emt 0:00:59]} 47. Qc7+ {[%emt 0:00:33]} Ke8 {[%emt 0:00:26]} 48. Qc6+ {[%emt 0:01:45]} Kf7 {[%emt 0:01:00]} 49. Qd7+ {[%emt 0:00:45]} Kf8 {[%emt 0:00:15]} 50. Qg7+ {[%emt 0:01:10]} Ke8 {[%emt 0:00:11]} 51. Qxf6 {[%emt 0:00:20]} 1-0

[Event "WSTCC-65 2020"]
[Site "Prague"]
[Date "2020.03.11"]
[Round "6.43"]
[White "Vavruska, Antonin"]
[Black "Christiansen, Arne"]
[Result "0-1"]
[ECO "B06"]
[WhiteElo "1971"]
[BlackElo "2016"]
[Annotator "ChessBase"]
[PlyCount "81"]
[EventDate "2020.03.06"]
[EventType "team-tourn"]
[EventCountry "CZE"]
[SourceTitle "playchess.com"]
[Source "ChessBase"]
[SourceQuality "1"]
[TimeControl "40/5400+30:1800+30"]

1. e4 {[%emt 0:00:00]} d6 {[%emt 0:00:00]} 2. d4 {[%emt 0:00:00]} g6 {[%emt 0:00:06]} 3. Nc3 {[%emt 0:00:00]} Bg7 {[%emt 0:00:10]} 4. Bg5 {[%emt 0:00:07]} c6 {[%emt 0:00:52]} 5. Qd2 {[%emt 0:00:41]} b5 {[%emt 0:01:49]} 6. h3 {[%emt 0:01:00]} Nf6 {[%emt 0:00:41]} 7. Nf3 {[%emt 0:00:36]} b4 {[%emt 0:00:52]} 8. Ne2 {[%emt 0:34:16]} Nxe4 {[%emt 0:00:16]} 9. Qf4 {[%emt 0:00:57]} Nxg5 {[%emt 0:01:01]} 10. Nxg5 {[%emt 0:00:15]} O-O {[%emt 0:00:31]} 11. Qh4 {[%emt 0:03:06]} h6 {[%emt 0:00:53]} 12. Nf3 {[%emt 0:01:37]} Nd7 {[%emt 0:03:15]} 13. O-O-O {[%emt 0:08:06]} c5 {[%emt 0:08:36]} 14. Qe4 {[%emt 0:10:55]} Rb8 {[%emt 0:00:49]} 15. Qe3 {[%emt 0:02:53]} Bb7 {[%emt 0:03:22]} 16. Kb1 {[%emt 0:07:29]} cxd4 {[%emt 0:15:45]} 17. Nexd4 {[%emt 0:00:22]} Ne5 {[%emt 0:02:02]} 18. Be2 {[%emt 0:01:16]} Qb6 {[%emt 0:05:55]} 19. Rhe1 {[%emt 0:02:29]} Rbc8 {[%emt 0:02:37]} 20. Rd2 {[%emt 0:02:51]} Bxf3 {[%emt 0:07:55]} 21. Nxf3 {[%emt 0:05:23]} Qxe3 {[%emt 0:00:47]} 22. fxe3 Nc4 {[%emt 0:01:30]} 23. Bxc4 {[%emt 0:00:09]} Rxc4 {[%emt 0:00:07]} 24. Rd5 {[%emt 0:02:49]} Rfc8 {[%emt 0:01:11]} 25. Re2 {[%emt 0:00:12]} R4c5 {[%emt 0:10:01]} 26. Red2 {[%emt 0:01:48]} f5 {[%emt 0:00:43]} 27. R5d3 {[%emt 0:02:03]} Kf7 {[%emt 0:00:47]} 28. a3 {[%emt 0:00:56]} Rb8 {[%emt 0:08:40]} 29. Rb3 {[%emt 0:00:53]} Rcb5 {[%emt 0:00:23]} 30. Ne1 {[%emt 0:05:25]} bxa3 {[%emt 0:00:58]} 31. Rxb5 {[%emt 0:00:19]} Rxb5 {[%emt 0:00:12]} 32. c4 {[%emt 0:02:06]} Rxb2+ {[%emt 0:00:51]} 33. Rxb2 {[%emt 0:00:08]} axb2 {[%emt 0:00:09]} 34. Nd3 {[%emt 0:00:13]} Bc3 {[%emt 0:02:44]} 35. Kc2 {[%emt 0:00:25]} Bd2 {[%emt 0:00:44]} 36. Nxb2 {[%emt 0:00:16]} Bxe3 {[%emt 0:00:07]} 37. Kd3 {[%emt 0:00:20]} Bc5 {[%emt 0:00:09]} 38. Na4 {[%emt 0:01:18]} e5 {[%emt 0:00:22]} 39. Nc3 {[%emt 0:00:10]} Ke6 {[%emt 0:00:13]} 40. Nd5 {[%emt 0:00:00]} e4+ {[%emt 0:00:00]} 41. Kc2 0-1

[Event "WSTCC-65 2020"]
[Site "Prague"]
[Date "2020.03.11"]
[Round "6.46"]
[White "Page, Mark E"]
[Black "Kratschmer, Heinz"]
[Result "0-1"]
[ECO "B23"]
[WhiteElo "2135"]
[BlackElo "2037"]
[Annotator "ChessBase"]
[PlyCount "72"]
[EventDate "2020.03.06"]
[EventType "team-tourn"]
[EventCountry "CZE"]
[SourceTitle "playchess.com"]
[Source "ChessBase"]
[SourceQuality "1"]
[TimeControl "40/5400+30:1800+30"]

1. e4 {[%emt 0:00:00]} c5 {[%emt 0:00:00]} 2. Nc3 {[%emt 0:00:00]} g6 {[%emt 0:00:00]} 3. f4 {[%emt 0:00:00]} Bg7 {[%emt 0:00:09]} 4. Nf3 {[%emt 0:00:00]} Nc6 {[%emt 0:00:17]} 5. Bb5 {[%emt 0:00:42]} Nd4 {[%emt 0:00:18]} 6. O-O {[%emt 0:00:29]} a6 {[%emt 0:00:08]} 7. Bd3 {[%emt 0:00:04]} d6 {[%emt 0:00:34]} 8. Nxd4 {[%emt 0:01:27]} cxd4 {[%emt 0:00:21]} 9. Ne2 {[%emt 0:00:06]} e5 {[%emt 0:00:31]} 10. Qe1 {[%emt 0:06:48]} Nf6 {[%emt 0:04:06]} 11. c3 {[%emt 0:04:29]} O-O {[%emt 0:02:57]} 12. Kh1 {[%emt 0:04:16]} Re8 {[%emt 0:06:19]} 13. fxe5 {[%emt 0:17:17]} dxe5 {[%emt 0:01:28]} 14. cxd4 {[%emt 0:03:07]} exd4 {[%emt 0:00:16]} 15. Ng3 {[%emt 0:05:06]} Be6 {[%emt 0:21:35]} 16. b3 {[%emt 0:01:41]} Ng4 {[%emt 0:02:02]} 17. Ne2 {[%emt 0:08:54]} Ne5 {[%emt 0:12:21]} 18. Qg3 {[%emt 0:05:01]} h5 {[%emt 0:04:21]} 19. Bb1 {[%emt 0:10:04]} Ng4 {[%emt 0:07:26]} 20. d3 {[%emt 0:05:54]} h4 {[%emt 0:08:22]} 21. Qe1 {[%emt 0:01:25]} Ne3 {[%emt 0:03:17]} 22. Rg1 {[%emt 0:03:02]} Rc8 {[%emt 0:07:17]} 23. Bb2 {[%emt 0:03:04]} Bg4 {[%emt 0:02:38]} 24. h3 {[%emt 0:03:02]} Bxe2 {[%emt 0:02:05]} 25. Qxe2 {[%emt 0:00:15]} Nf5 {[%emt 0:00:10]} 26. g4 {[%emt 0:04:40]} Ng3+ {[%emt 0:00:08]} 27. Rxg3 {[%emt 0:00:21]} hxg3 {[%emt 0:00:02]} 28. Bc2 {[%emt 0:00:54]} Re6 {[%emt 0:02:12]} 29. Rf1 {[%emt 0:00:47]} Rf6 {[%emt 0:01:19]} 30. Rxf6 {[%emt 0:01:38]} Qxf6 {[%emt 0:00:13]} 31. Kg2 {[%emt 0:00:06]} Qf4 {[%emt 0:04:34]} 32. Bd1 {[%emt 0:01:33]} Be5 {[%emt 0:01:18]} 33. b4 {[%emt 0:00:50]} Kg7 {[%emt 0:00:34]} 34. a4 {[%emt 0:00:26]} Rh8 {[%emt 0:00:15]} 35. Qf1 {[%emt 0:04:15]} Qd2+ {[%emt 0:00:43]} 36. Qe2 {[%emt 0:00:13]} Qh6 {[%emt 0:00:07]} 0-1

[Event "WSTCC-65 2020"]
[Site "Prague"]
[Date "2020.03.11"]
[Round "6.47"]
[White "Pitzl, Konstantinos"]
[Black "Bowmer, Kevin"]
[Result "1/2-1/2"]
[ECO "A04"]
[WhiteElo "2023"]
[BlackElo "2116"]
[Annotator "ChessBase"]
[PlyCount "45"]
[EventDate "2020.03.06"]
[EventType "team-tourn"]
[EventCountry "CZE"]
[SourceTitle "playchess.com"]
[Source "ChessBase"]
[SourceQuality "1"]
[TimeControl "40/5400+30:1800+30"]

1. Nf3 {[%emt 0:00:00]} g6 {[%emt 0:00:00]} 2. g3 {[%emt 0:00:07]} Bg7 {[%emt 0:00:00]} 3. Bg2 {[%emt 0:00:09]} c5 {[%emt 0:00:31]} 4. O-O {[%emt 0:00:37]} Nc6 {[%emt 0:00:24]} 5. c3 {[%emt 0:00:39]} e5 {[%emt 0:02:22]} 6. d3 {[%emt 0:00:37]} Nge7 {[%emt 0:01:08]} 7. e4 {[%emt 0:00:55]} O-O {[%emt 0:14:43]} 8. Be3 {[%emt 0:00:35]} d6 {[%emt 0:00:33]} 9. d4 {[%emt 0:00:18]} cxd4 {[%emt 0:01:53]} 10. cxd4 {[%emt 0:00:06]} Bg4 {[%emt 0:03:04]} 11. d5 {[%emt 0:00:40]} Nb4 {[%emt 0:11:50]} 12. a3 {[%emt 0:00:32]} Na6 {[%emt 0:01:18]} 13. h3 {[%emt 0:00:04]} Bd7 {[%emt 0:02:11]} 14. Nc3 {[%emt 0:00:17]} f5 {[%emt 0:12:04]} 15. Rc1 {[%emt 0:09:31]} b6 {[%emt 0:08:18]} 16. b4 {[%emt 0:02:43]} Nc7 {[%emt 0:03:22]} 17. Nh2 {[%emt 0:15:40]} Nb5 {[%emt 0:10:44]} 18. Nxb5 {[%emt 0:02:24]} Bxb5 {[%emt 0:00:04]} 19. Re1 {[%emt 0:00:08]} fxe4 {[%emt 0:01:08]} 20. Bxe4 {[%emt 0:03:53]} Nf5 {[%emt 0:02:09]} 21. Qd2 {[%emt 0:04:02]} Qd7 {[%emt 0:04:31]} 22. Kg2 {[%emt 0:05:08]} Rac8 {[%emt 0:03:07]} 23. Nf3 {[%emt 0:01:16]} 1/2-1/2